Cogmind - Beta 14 @@@ ROGUE MODE // 2024.11.11 @ 23:22:51 Player: Enathri Result: Destroyed by S-10 Pest with Light Assault Rifle Performance ------------- Evolutions (2) 1000 Regions Visited (4) 800 Robots Destroyed (24) 120 Value Destroyed (658) 658 Prototype IDs (2) 40 Alien Tech Used (0) 0 Bonus (33) 33 TOTAL SCORE: 2651 Bonus ------- High Alert Combat Kills 33 Cogmind --------- Core Integrity 0/550 Matter 31/300 Energy 100/100 System Corruption 0% Temperature Cool (0) Movement Core (50) Location -8/Materials Parts ------- > --- POWER (2) -------- (None) > --- PROPULSION (4) --- (None) > --- UTILITY (2) ------ (None) > --- WEAPON (3) ------- (None) > --- INVENTORY (5) ---- Improved Aluminum Leg Wheel Cesium-ion Thruster Insulated Plating Peak State ------------ > --- POWER ------------ Nuclear Core > --- PROPULSION ------- Aluminum Leg Surge Thruster Surge Thruster Surge Thruster > --- UTILITY ---------- Small Storage Unit Hardened Light Armor Plating > --- WEAPON ----------- High-powered Shotgun Rocket Launcher > --- INVENTORY -------- Aluminum Leg Improved Aluminum Leg Wheel Cesium-ion Thruster Insulated Plating Light Assault Rifle Rocket Launcher Mining Laser [Rating: 22] Favorites ----------- Power Ion Engine Engine Ion Engine Power Core Nuclear Core Propulsion Aluminum Leg Leg Aluminum Leg Wheel Wheel Flight Unit Surge Thruster Utility Small Storage Unit Storage Small Storage Unit Protection Hardened Light Armor Plating Weapon Mining Laser Ballistic Gun Light Assault Rifle Launcher Rocket Launcher Special Weapon Mining Laser Build | -11 -10 -10 -9 -8 ------- Run | Yrd Mat Min Mat Mat Slots Evolved 4 | . . . 2 2 Power 1 | . . . . 1 Propulsion 2 | . . . 1 1 Utility . | . . . . . Weapon 1 | . . . 1 . Parts Attached 24 | 6 5 . 1 12 Power 4 | 1 1 . . 2 Engine 3 | 1 1 . . 1 Core 1 | . . . . 1 Reactor . | . . . . . Propulsion 9 | 2 . . 1 6 Treads . | . . . . . Leg 4 | 2 . . 1 1 Wheel 1 | . . . . 1 Hover . | . . . . . Flight 4 | . . . . 4 Utility 2 | 1 1 . . . Device . | . . . . . Storage 1 | 1 . . . . Processor . | . . . . . Hackware . | . . . . . Protection 1 | . 1 . . . Artifact . | . . . . . Weapon 9 | 2 3 . . 4 Energy Gun . | . . . . . Energy Cannon . | . . . . . Ballistic Gun 3 | 2 . . . 1 Ballistic Cannon . | . . . . . Launcher 2 | . . . . 2 Special Weapon 4 | . 3 . . 1 Impact Weapon . | . . . . . Slashing Weapon . | . . . . . Piercing Weapon . | . . . . . Special Melee Weapon . | . . . . . Unidentified Prototypes . | . . . . . Parts Lost 11 | . . . . 11 Power 3 | . . . . 3 Propulsion 4 | . . . . 4 Utility . | . . . . . Weapon 4 | . . . . 4 Highest Loss Streak 3 | . . . . 3 To Critical Strikes . | . . . . . Average Slot Usage (%) 77 | . 86 100 78 62 Engine 9 | . 14 14 11 6 Core 2 | . . . . 4 Leg 23 | . 28 28 23 19 Flight 2 | . . . . 5 Storage 9 | . 14 14 11 6 Protection 8 | . 1 14 11 6 Ballistic Gun 1 | . 10 . . . Launcher 3 | . . . . 7 Special Weapon 14 | . 17 28 22 5 Peak Build Rating 22 | 6 9 9 11 22 Average Rating 9 | 5 6 8 9 12 On Entrance 7 | . 6 9 9 11 Naked Turns 41 | . . . . 41 Heaviest Build 29 | 11 17 17 17 29 Greatest Support 48 | 20 20 20 33 48 Greatest Overweight (x) 7 | . . . . 7 Average Overweight (x) . | . . . . . Largest Inventory Capacity 8 | 8 8 8 8 8 Average Capacity 7 | 7 8 8 8 7 Most Carried 8 | 8 8 8 8 8 Average Carried 6 | 3 7 7 8 5 Final Capacity 8 | 8 8 8 8 5 Final Carried 8 | 8 8 8 8 4 Class Distribution -------------------- 85% | Mutant 10% | Tank 4% | Sprinter Dominant Class ---------------- Mutant | -10/Materials Mutant | -10/Mines Mutant | -9/Materials Mutant | -8/Materials Resources | -11 -10 -10 -9 -8 ----------- Run | Yrd Mat Min Mat Mat Matter Collected 448 | 324 25 . . 99 Remotely . | . . . . . Salvage Created 473 | 193 26 . . 254 Parts 25 | 7 1 . . 17 Haulers Intercepted . | . . . . . Recyclers Shooed 2 | 1 . . . 1 Parts Field Recycled . | . . . . . Retrieved Matter . | . . . . . Parts Self-Destructed . | . . . . . Prevented . | . . . . . Kills | -11 -10 -10 -9 -8 ------- Run | Yrd Mat Min Mat Mat Combat Hostiles Destroyed 11 | . 2 . . 9 Cannons 2 | . 2 . . . AOE 9 | . . . . 9 Classes Destroyed 9 | 3 1 . . 5 Worker 3 | 2 . 1 . . Builder 2 | . . . . 2 Tunneler 4 | 3 . 1 . . Recycler 2 | 1 . . . 1 Operator 1 | . . . . 1 Watcher 1 | . . . . 1 Grunt 9 | . 2 . . 7 Brawler 1 | . . . . 1 Sentry 1 | . . . . 1 Best Kill Streak 6 | 4 2 1 . 6 Combat Bots Only 3 | . 2 . . 3 Max Kills in Single Turn 2 | 1 1 1 . 2 Gunslinging . | . . . . . Exploded 1 | . . . . 1 Melee . | . . . . . Uniques/NPCs Destroyed . | . . . . . Combat | -11 -10 -10 -9 -8 -------- Run | Yrd Mat Min Mat Mat Hostile Shots Fired 152 | . 10 1 1 140 Missed 59 | . 2 1 1 55 Damage Taken 1525 | . 113 . . 1412 Core 595 | . 39 . . 556 Absorbed by Shields . | . . . . . Core Remaining (%) 94 | 100 . 84 100 . Volleys Fired 51 | 16 5 4 1 25 Largest 2 | 2 2 2 2 2 Hottest 200 | 40 120 200 200 200 Shots Fired 82 | 32 10 8 2 30 Gun 37 | 32 5 . . . Cannon . | . . . . . Launcher 26 | . . . . 26 Special 19 | . 5 8 2 4 Kinetic 37 | 32 5 . . . Thermal 19 | . 5 8 2 4 Explosive 26 | . . . . 26 Electromagnetic . | . . . . . Robot Hit Streak 7 | 7 7 2 . 4 Robot Miss Streak 4 | 2 1 3 2 4 Penetration Max . | . . . . . Secondary Targets . | . . . . . Shots Hit Robots 42 | 20 6 3 . 13 Core Hits 49 | 7 4 2 . 36 Critical Kills . | . . . . . Critical Parts Destroyed . | . . . . . Critical Strikes . | . . . . . Melee Attacks . | . . . . . Impact . | . . . . . Slashing . | . . . . . Piercing . | . . . . . Sneak Attacks . | . . . . . Combat Hostiles . | . . . . . Follow-up Attacks . | . . . . . Damage Inflicted 1955 | 240 130 72 . 1513 Guns 246 | 240 6 . . . Cannons . | . . . . . Explosions 1460 | . . . . 1460 Melee . | . . . . . Ramming 33 | . 4 . . 29 Kinetic 246 | 240 6 . . . Thermal 216 | . 120 72 . 24 Explosive 1460 | . . . . 1460 Electromagnetic . | . . . . . Impact . | . . . . . Slashing . | . . . . . Piercing . | . . . . . Highest Corruption . | . . . . . Average Corruption . | . . . . . Corruption Purged . | . . . . . Corruption Blocked . | . . . . . Overload Shots . | . . . . . Overflow Damage 64 | . . . . 64 Projectiles . | . . . . . Explosions 64 | . . . . 64 Melee . | . . . . . Knockbacks . | . . . . . Impact . | . . . . . Kinetic . | . . . . . Secondary . | . . . . . Self-Inflicted Damage 123 | . . . . 123 Shots 4 | . . . . 4 Rammed 1 | . . . . 1 Targets Rammed 7 | . 1 . . 6 Kicked 6 | . 1 . . 5 Crushed . | . . . . . Highest Temperature 207 | . 207 182 70 90 Average Temperature 68 | . 113 93 36 26 Received Heat Transfer 636 | . 87 . . 549 Siege Activations . | . . . . . Robots Corrupted . | . . . . . Combat Hostiles . | . . . . . Parts Fried . | . . . . . Impact Corruptions . | . . . . . Robots Melted . | . . . . . Combat Hostiles . | . . . . . Parts Melted 1 | . . . . 1 Heat Transferred 450 | . 250 150 . 50 Parts Sabotaged . | . . . . . Parts Stolen . | . . . . . Parts Stripped . | . . . . . Power Chain Reactions . | . . . . . Alert | -11 -10 -10 -9 -8 ------- Run | Yrd Mat Min Mat Mat Peak Influence 627 | 30 69 39 64 627 Initial 26 | . 19 26 14 26 Average 186 | 10 49 35 27 406 Maximum Alert Level 2 | . . . . 2 Low Security (%) 67 | 100 100 100 100 21 Level 1 4 | . . . . 11 Level 2 27 | . . . . 66 Level 3 . | . . . . . Level 4 . | . . . . . Level 5 . | . . . . . High Security . | . . . . . Max Security . | . . . . . Squads Dispatched 3 | . . . . 3 Investigation 1 | . . . . 1 Extermination . | . . . . . Reinforcement 2 | . . . . 2 Assault . | . . . . . Garrison . | . . . . . Intercept . | . . . . . Searches Triggered . | . . . . . Construction Impeded . | . . . . . Haulers Reinforced . | . . . . . Active Scanning Responses . | . . . . . Cargo Convoy Interrupts . | . . . . . Stealth | -11 -10 -10 -9 -8 --------- Run | Yrd Mat Min Mat Mat Distress Signals 2 | . . . 1 1 Communications Jammed . | . . . . . Distress Signals . | . . . . . Times Spotted 52 | . 2 3 3 44 Peak Tracking Total 11 | . 2 3 3 11 Tactical Retreats 7 | . . . 1 6 Traps | -11 -10 -10 -9 -8 ------- Run | Yrd Mat Min Mat Mat Traps Triggered 1 | . . . . 1 Indirectly . | . . . . . Trap Hack Attempts . | . . . . . Triggered . | . . . . . Disarmed . | . . . . . Reprogrammed . | . . . . . Reused . | . . . . . Traps Extracted . | . . . . . Installed . | . . . . . Triggered . | . . . . . Machines | -11 -10 -10 -9 -8 ---------- Run | Yrd Mat Min Mat Mat Machines Disabled 7 | . . . . 7 Max in Single Turn 1 | . . . . 1 Machines Repaired . | . . . . . Machines Dismantled . | . . . . . Machines Sabotaged . | . . . . . Overloaded Fab Kills . | . . . . . Hacking | -11 -10 -10 -9 -8 --------- Run | Yrd Mat Min Mat Mat Machines Accessed 5 | . . . 2 3 Terminals 5 | . . . 2 3 Fabricators . | . . . . . Repair Stations . | . . . . . Recycling Units . | . . . . . Scanalyzers . | . . . . . Garrison Access . | . . . . . Total Hacks 10 | . . . 2 8 Successful 3 | . . . 1 2 Failed 7 | . . . 1 6 Catastrophic 2 | . . . 1 1 Database Lockouts . | . . . . . Manual . | . . . . . Terminals 10 | . . . 2 8 Fabricators . | . . . . . Repair Stations . | . . . . . Recycling Units . | . . . . . Scanalyzers . | . . . . . Garrison Access . | . . . . . Terminal Hacks 3 | . . . 1 2 Record 1 | . . . . 1 Prototype ID Bank 1 | . . . 1 . Registered Components 1 | . . . . 1 Fabricator Hacks . | . . . . . Repair Station Hacks . | . . . . . Recycling Unit Hacks . | . . . . . Scanalyzer . | . . . . . Garrison Access Hacks . | . . . . . Unauthorized Hacks . | . . . . . Terminals . | . . . . . Fabricators . | . . . . . Repair Stations . | . . . . . Recycling Units . | . . . . . Scanalyzers . | . . . . . Garrison Access . | . . . . . Data Cores Recovered 1 | . . . . 1 Used . | . . . . . Hacking Detections 5 | . . . 2 3 Full Trace Events 1 | . . . . 1 Feedback Events . | . . . . . Feedback Blocked . | . . . . . Robot Schematics Acquired . | . . . . . Robots Built . | . . . . . Authchips . | . . . . . Time . | . . . . . Total Robot Build Rating . | . . . . . Part Schematics Acquired . | . . . . . Parts Built . | . . . . . Authchips . | . . . . . Time . | . . . . . Total Part Build Rating . | . . . . . Parts Repaired . | . . . . . Time . | . . . . . Parts Recycled . | . . . . . Recycled Matter . | . . . . . Retrieved Matter . | . . . . . Retrieved Components . | . . . . . Parts Scanalyzed . | . . . . . Part Schematics Acquired . | . . . . . Parts Damaged . | . . . . . Bothacking | -11 -10 -10 -9 -8 ------------ Run | Yrd Mat Min Mat Mat Used RIF Installer . | . . . . . Robots Hacked . | . . . . . Non-combat . | . . . . . Combat . | . . . . . Robot Hacks Applied . | . . . . . Relay Couplers Released . | . . . . . Fabnet Peak Effective % . | . . . . . Robots Rewired . | . . . . . Allies Hacked . | . . . . . Hacks Repelled . | . . . . . Allies | -11 -10 -10 -9 -8 -------- Run | Yrd Mat Min Mat Mat Total Allies . | . . . . . Largest Group . | . . . . . Highest-Rated Group . | . . . . . Highest-Rated Ally . | . . . . . Total Orders . | . . . . . Ally Attacks . | . . . . . Total Damage . | . . . . . Kills . | . . . . . Allies Corrupted . | . . . . . Allies Melted . | . . . . . Intel | -11 -10 -10 -9 -8 ------- Run | Yrd Mat Min Mat Mat Robot Analysis Total . | . . . . . Derelict Logs Recovered 1 | . . 1 . . Drone Launches . | . . . . . Drone Recoveries . | . . . . . Exploration | -11 -10 -10 -9 -8 ------------- Run | Yrd Mat Min Mat Mat Turns Passed 1172 | 188 128 249 121 486 Spaces Moved 1038 | 108 70 179 94 587 Core 94 | 7 . . . 87 Treads . | . . . . . Legs 645 | 101 70 179 94 201 Wheels 10 | . . . . 10 Hover . | . . . . . Flight 289 | . . . . 289 Fastest Speed 29 | 50 120 120 120 29 Average Speed 89 | 115 120 120 120 66 Slowest Speed 345 | 120 120 120 120 345 Overloaded Moves . | . . . . . Propulsion Burnouts . | . . . . . Robots Hopped 15 | . . . . 15 Cave-ins Triggered . | . . . . . Exploration Rate (%) 28 | 6 14 36 15 69 Regions Visited 4 Branch Regions 1 Pre-discovered Areas . | . . . . . Known Exits Taken . | . . . . . Unknown Exits Taken 4 | 1 1 1 1 . Scrap Searched . | . . . . . Spaces Dug 2 | . . . . 2 Terrain Destroyed 164 | . . 4 . 160 Melee . | . . . . . Projectile 7 | . . 4 . 3 AOE 157 | . . . . 157 Terrain Rammed . | . . . . . Walls Destroyed . | . . . . . Machines Disabled . | . . . . . Actions | -11 -10 -10 -9 -8 --------- Run | Yrd Mat Min Mat Mat Total 1148 | 139 97 189 95 628 Wait 14 | 2 7 5 . . Move 1006 | 107 69 178 93 559 Hop 13 | . . . . 13 Pick Up 15 | 8 4 1 . 2 Fast Attach 15 | 6 1 . 1 7 Attach 7 | . 2 . . 5 Detach 5 | . 1 . . 4 Swap 2 | . 2 . . . Drop 13 | . 5 1 . 7 Fire 51 | 16 5 4 1 25 Melee . | . . . . . Ram 1 | . . . . 1 Kick 6 | . 1 . . 5 Crush . | . . . . . Escape Stasis . | . . . . . Rewire . | . . . . . Trap . | . . . . . Miscellaneous . | . . . . . Route ------- -11/Scrapyard -10/Materials -10/Mines -9/Materials -8/Materials (discovered 1 exit: [*Fac]) History --------- Turn | Location | Event 3 | -11/Scrapyard | Discovered new exit (range 15) 189 | -11/Scrapyard | Entered Materials 263 | -10/Materials | Discovered new exit (range 14) 317 | -10/Materials | Entered Mines 324 | -10/Mines | Learned Materials garrison access intel 325 | -10/Mines | Build established: Mutant 541 | -10/Mines | Discovered new exit (range 5) 544 | -10/Mines | Assembled infested the area 552 | -10/Mines | Received a Rocket Launcher from a helpful Derelict 566 | -10/Mines | Entered Materials 566 | -9/Materials | Evolved 2 slots: Propulsion x1, Weapon x1 683 | -9/Materials | Discovered new exit (range 4) 687 | -9/Materials | Entered another Materials area 687 | -8/Materials | Evolved 2 slots: Power x1, Propulsion x1 688 | -8/Materials | Loaded intel: 1 garrison access location 979 | -8/Materials | Lost 3 parts (1p1n1w) 1101 | -8/Materials | Lost 3 parts (1p2n) 1114 | -8/Materials | Discovered new exit (range 16) 1120 | -8/Materials | Core integrity fell below 50% 1148 | -8/Materials | Core integrity fell below 20% 1173 | -8/Materials | Destroyed by S-10 Pest with Light Assault Rifle Last Messages --------------- 01026_ Dropped Rocket Launcher. 01026_ Dropped Hrd. Light Armor Plating. 01027_ Dropped Hpw. Shotgun. 01036_ S-10 Pest suffers critical hit (Burn). 01036_ S-10 Pest destroyed. 01040_ K-01 Serf collects debris. 01050_ Nuclear Core destroyed. 01067_ Surge Thruster destroyed. 01069_ Acquired 11 matter. 01070_ S-10 Pest destroyed. 01070_ Surge Thruster destroyed. 01096_ U-05 Engineer builds a Wall. 01113_ ALERT: Hostiles spotted, dispatching reinforcements to Terminal M009. 01114_ EXIT=FOUND 01114_ Knocked back. 01119_ Surge Thruster destroyed. 01144_ Mining Laser destroyed. 01146_ Slammed into W-25 Informer. 01170_ Connecting with Terminal... Map ----- +----------------------------------------------------+ | """ #??????????????????????????? | | #??????????????????????????? | | #######??????????????????????????? | | !!=!= #??????????????????????????? | | [![] #??????????????????????????? | | ] #??????????????????????????? | | #??????????????????????????? | | #/#######????????????????????????? | | +????????????????????????? | | #??????????? ????????????? | | #??????????? ????????????? | | +????? ????????????? | | ######### #????? #???????????? | | ######??? #????? #?####??????? | | #??# ? #????? #?# ??????? | | #??# ? ?????? #?# ""?????? | | #??# ??????# #?# """ #? | | """????# ??????# #?# """ #? | | """"????# ?????# #?# #? | | """" ???# ###### #?# """ #? | | """ ???# k #?# """ #? | | """" ???# #?# """ #? | | ####????# ### #? | | ????????# ss ##+######## | | ????????# # T # | | ????????# s @ + # | | ????????# # # | | ????????########## # # | | ?????? ### ### # # | | ?????? """"" #?# #?# # # | | ????? """"""""" #?# #?# # # | | ???# """ """ #?# #?# ###### | | ???# ### #####+#????? | | ?????########+### !#????????? | | ?###???### #????????? | | # ?? # #????????? | | # "?" + +????????? | | # "?" # #????????? | | # "?" # #????????? | | # ? # ## #????????? | | # """ # ##########????????? | | #/ """ # # #????????? | | # """ # + #????????? | | # + # #????????? | | # """ # # ! #????????? | | # """ # #? #????????? | | # """ # ##? #????????? | | # # #??? = #????????? | | # + #??? #????????? | | " ######???? #????????? | +----------------------------------------------------+ Best States ------------- Heat Dissipation 31 Energy Generation 19 Energy Capacity 275 Matter Stores 300 Matter Capacity 300 Sight Range 16 Terrain Scan Density 10 Armor Coverage 150 Evasion (%) 64 Item Schematics ----------------- None Robot Schematics ------------------ None Fabricated ------------ Nothing Alien Tech Used ----------------- None Achievements -------------- Oops Challenges ------------ None Game ------ Seed HypervelocityTripodFlakker Manual? 0 Play Time 00:23:59 Cumulative 11.0 hours Start 2024.11.11 @ 22:54:05 End 2024.11.11 @ 23:22:51 Sessions 1 Manual Loads 0 Difficulty Rogue Special Mode None Game No. 16 Rogue 16 Adventurer 0 Explorer 0 Win Type - Total 0 Types 0/0/0/0/0/0/0/0/0 Lore% 2 Gallery% 15 Achievement% 14 Wizard Run 0 Options --------- Layout 0 ASCII 0 Keyboard 1 Movement Numpad Keybinds 0 Fullscreen 2 Font 18/SmallcapsGlow Map View 76x50 Zoom Use 0% Tactical HUD 1 Map Filters NONE Filters NONE Steam 1 RUN: e21e06ca-aa7e-4e72-84f6-881d17ba4f31